[Event "Late-Titled-Tuesday-Blitz-September-26-2023"]
[Site "Chess.com"]
[Date "2023.09.26"]
[Round "6"]
[White "Mykola-Bortnyk"]
[Black "AradNazari"]
[Result "0-1"]
[WhiteElo "2964"]
[BlackElo "2794"]
[TimeControl "180+1"]
[EndTime "15:05:07 PDT"]
[Termination "AradNazari won by resignation"]

1. e4 {[%clk 0:03:00.9]} 1... c5 {[%clk 0:02:58.9]} 2. c3 {[%clk 0:02:55.9]}
2... d5 {[%clk 0:02:58.7]} 3. exd5 {[%clk 0:02:56.5]} 3... Qxd5 {[%clk
0:02:59.6]} 4. d4 {[%clk 0:02:56.8]} 4... g6 {[%clk 0:03:00.3]} 5. dxc5 {[%clk
0:02:52.8]} 5... Qxc5 {[%clk 0:02:58.9]} 6. Be3 {[%clk 0:02:52.1]} 6... Qc7
{[%clk 0:02:59.2]} 7. Qb3 {[%clk 0:02:52.2]} 7... Be6 {[%clk 0:02:34.5]} 8. Qa4+
{[%clk 0:02:42.7]} 8... Nd7 {[%clk 0:02:32.3]} 9. Na3 {[%clk 0:02:42.7]} 9... a6
{[%clk 0:02:22.9]} 10. Nf3 {[%clk 0:02:39.6]} 10... Bg7 {[%clk 0:02:04.9]} 11.
Nd4 {[%clk 0:02:19]} 11... Bd5 {[%clk 0:01:53.1]} 12. O-O-O {[%clk 0:01:54.1]}
12... Nf6 {[%clk 0:01:42.4]} 13. Bc4 {[%clk 0:01:48]} 13... b5 {[%clk 0:01:21]}
14. Bxb5 {[%clk 0:00:58.1]} 14... axb5 {[%clk 0:01:20.9]} 15. Ndxb5 {[%clk
0:00:58.7]} 15... Qb8 {[%clk 0:01:00.2]} 16. Ba7 {[%clk 0:00:57.5]} 16... Qb7
{[%clk 0:00:58.3]} 17. f3 {[%clk 0:00:44.3]} 17... O-O {[%clk 0:00:53.9]} 18.
Rhe1 {[%clk 0:00:38.1]} 18... e6 {[%clk 0:00:45.3]} 19. Rd4 {[%clk 0:00:21.3]}
19... Bc6 {[%clk 0:00:35.3]} 20. Qa5 {[%clk 0:00:21.7]} 20... Nd5 {[%clk
0:00:26.6]} 21. Rc4 {[%clk 0:00:21.6]} 21... N7b6 {[%clk 0:00:18.7]} 22. Rc5
{[%clk 0:00:17.9]} 22... Nd7 {[%clk 0:00:15.8]} 23. Rc4 {[%clk 0:00:18.3]} 23...
N5b6 {[%clk 0:00:15.9]} 24. Rb4 {[%clk 0:00:14.1]} 24... Bxb5 {[%clk 0:00:11.3]}
25. Nxb5 {[%clk 0:00:11.4]} 25... Qc6 {[%clk 0:00:10.7]} 26. Qa6 {[%clk
0:00:08]} 26... Rfc8 {[%clk 0:00:07]} 27. Kb1 {[%clk 0:00:07.6]} 27... Nd5
{[%clk 0:00:06.5]} 28. Qxc6 {[%clk 0:00:07]} 28... Rxc6 {[%clk 0:00:07.4]} 29.
Rb3 {[%clk 0:00:06]} 29... Nc7 {[%clk 0:00:07.5]} 30. Nxc7 {[%clk 0:00:05.6]}
30... Rxa7 {[%clk 0:00:05.2]} 31. Nb5 {[%clk 0:00:06]} 31... Ra8 {[%clk
0:00:05.5]} 32. Rd1 {[%clk 0:00:03.5]} 32... Nc5 {[%clk 0:00:06.2]} 33. Rb4
{[%clk 0:00:04.3]} 33... Bf8 {[%clk 0:00:06.5]} 34. Rc4 {[%clk 0:00:04.8]} 34...
Rb6 {[%clk 0:00:06.6]} 35. Nd4 {[%clk 0:00:04]} 35... Rab8 {[%clk 0:00:06.7]}
36. Rd2 {[%clk 0:00:04]} 36... e5 {[%clk 0:00:05.1]} 37. Ne2 {[%clk 0:00:02.4]}
37... Ne6 {[%clk 0:00:05.5]} 38. b3 {[%clk 0:00:02.4]} 38... Bh6 {[%clk
0:00:05.9]} 39. Rd1 {[%clk 0:00:02.5]} 39... Nf4 {[%clk 0:00:04.6]} 40. Nxf4
{[%clk 0:00:02.2]} 40... Bxf4 {[%clk 0:00:05.5]} 41. g3 {[%clk 0:00:03.1]} 41...
Be3 {[%clk 0:00:05.8]} 42. Kb2 {[%clk 0:00:04]} 42... f5 {[%clk 0:00:05.8]} 43.
Rd5 {[%clk 0:00:04.2]} 43... Rb5 {[%clk 0:00:04.4]} 44. Rd7 {[%clk 0:00:04.5]}
44... R5b7 {[%clk 0:00:04.2]} 45. Rd5 {[%clk 0:00:05.3]} 45... Re8 {[%clk
0:00:04.4]} 46. a4 {[%clk 0:00:05.4]} 46... e4 {[%clk 0:00:05]} 47. fxe4 {[%clk
0:00:06.2]} 47... fxe4 {[%clk 0:00:05.9]} 48. Rd1 {[%clk 0:00:06.3]} 48... Ba7
{[%clk 0:00:06.2]} 49. Re1 {[%clk 0:00:06.8]} 49... e3 {[%clk 0:00:06.9]} 50. a5
{[%clk 0:00:06.2]} 50... Rd7 {[%clk 0:00:05.8]} 51. b4 {[%clk 0:00:05]} 51... e2
{[%clk 0:00:04.8]} 52. b5 {[%clk 0:00:03.4]} 52... Bf2 {[%clk 0:00:05.3]} 53.
Rxe2 {[%clk 0:00:03.4]} 53... Rxe2+ {[%clk 0:00:06.2]} 54. Kb3 {[%clk
0:00:04.3]} 54... Rdd2 {[%clk 0:00:06.8]} 55. Rc8+ {[%clk 0:00:04.4]} 55... Kf7
{[%clk 0:00:06.8]} 56. Kc4 {[%clk 0:00:04.2]} 56... Ra2 {[%clk 0:00:06]} 57.
Rc7+ {[%clk 0:00:03.8]} 57... Re7 {[%clk 0:00:06.2]} 58. Rxe7+ {[%clk
0:00:04.2]} 58... Kxe7 {[%clk 0:00:07.1]} 59. Kb4 {[%clk 0:00:05.1]} 59... Kd6
{[%clk 0:00:06.4]} 60. g4 {[%clk 0:00:04.6]} 60... Bc5+ {[%clk 0:00:06.6]} 0-1

[Event "Late-Titled-Tuesday-Blitz-September-26-2023"]
[Site "Chess.com"]
[Date "2023.09.26"]
[Round "6"]
[White "Bilan_Danila"]
[Black "bazar-wokzal"]
[Result "0-1"]
[WhiteElo "2510"]
[BlackElo "2682"]
[TimeControl "180+1"]
[EndTime "15:05:08 PDT"]
[Termination "bazar-wokzal won by resignation"]

1. d4 {[%clk 0:03:00.9]} 1... Nf6 {[%clk 0:02:59.2]} 2. Nf3 {[%clk 0:03:01]}
2... e6 {[%clk 0:02:59.2]} 3. g3 {[%clk 0:02:59.8]} 3... b5 {[%clk 0:02:58.7]}
4. Bg2 {[%clk 0:03:00.2]} 4... Bb7 {[%clk 0:02:58.4]} 5. O-O {[%clk 0:03:01.1]}
5... c5 {[%clk 0:02:58.3]} 6. a4 {[%clk 0:03:01.2]} 6... b4 {[%clk 0:02:58.2]}
7. c4 {[%clk 0:03:01.5]} 7... bxc3 {[%clk 0:02:58.1]} 8. bxc3 {[%clk 0:03:01.7]}
8... Na6 {[%clk 0:02:58.2]} 9. Ba3 {[%clk 0:02:58.6]} 9... Rc8 {[%clk
0:02:50.1]} 10. Nbd2 {[%clk 0:02:55.6]} 10... Be7 {[%clk 0:02:32.1]} 11. e3
{[%clk 0:02:36.3]} 11... O-O {[%clk 0:02:31.3]} 12. Qb3 {[%clk 0:02:17.6]} 12...
Bc6 {[%clk 0:02:16]} 13. Ne5 {[%clk 0:02:14.9]} 13... Bxg2 {[%clk 0:02:14.3]}
14. Kxg2 {[%clk 0:02:15.8]} 14... d6 {[%clk 0:02:06.9]} 15. Nef3 {[%clk
0:01:59.4]} 15... Rb8 {[%clk 0:02:05.4]} 16. Qc4 {[%clk 0:01:54.9]} 16... Qc8
{[%clk 0:01:59.8]} 17. Rfb1 {[%clk 0:01:48.7]} 17... cxd4 {[%clk 0:01:56.7]} 18.
Qxc8 {[%clk 0:01:30.2]} 18... Rfxc8 {[%clk 0:01:55.2]} 19. cxd4 {[%clk
0:01:30.2]} 19... Kf8 {[%clk 0:01:51.3]} 20. Rxb8 {[%clk 0:01:25.9]} 20... Rxb8
{[%clk 0:01:44.3]} 21. Rc1 {[%clk 0:01:19.8]} 21... d5 {[%clk 0:01:38]} 22.
Bxe7+ {[%clk 0:01:10.2]} 22... Kxe7 {[%clk 0:01:38.9]} 23. Ne5 {[%clk
0:01:01.8]} 23... Rb7 {[%clk 0:01:35.1]} 24. g4 {[%clk 0:00:36.3]} 24... h6
{[%clk 0:01:32.7]} 25. h4 {[%clk 0:00:36.4]} 25... Nb4 {[%clk 0:01:30.2]} 26. g5
{[%clk 0:00:34.5]} 26... hxg5 {[%clk 0:01:29.7]} 27. hxg5 {[%clk 0:00:35.4]}
27... Nd7 {[%clk 0:01:29.8]} 28. Nxd7 {[%clk 0:00:31.5]} 28... Kxd7 {[%clk
0:01:21]} 29. Nb3 {[%clk 0:00:30.8]} 29... Rc7 {[%clk 0:01:11.6]} 30. Nc5+
{[%clk 0:00:29.7]} 30... Kd6 {[%clk 0:01:10.2]} 31. f4 {[%clk 0:00:26.4]} 31...
Na6 {[%clk 0:01:04.8]} 32. Nb3 {[%clk 0:00:07.6]} 32... Rxc1 {[%clk 0:00:56]}
33. Nxc1 {[%clk 0:00:08.5]} 33... Nb4 {[%clk 0:00:51.2]} 34. Nb3 {[%clk
0:00:05.2]} 34... Nd3 {[%clk 0:00:50.6]} 35. Kf3 {[%clk 0:00:04]} 35... Nb2
{[%clk 0:00:43.4]} 36. Nc5 {[%clk 0:00:04.1]} 36... g6 {[%clk 0:00:34.1]} 37. e4
{[%clk 0:00:04]} 37... dxe4+ {[%clk 0:00:28.2]} 38. Kxe4 {[%clk 0:00:04.9]}
38... Nc4 {[%clk 0:00:25.5]} 39. Nb7+ {[%clk 0:00:04.6]} 39... Kc7 {[%clk
0:00:24.2]} 40. Nc5 {[%clk 0:00:03.8]} 40... Kb6 {[%clk 0:00:21.6]} 41. Nd7+
{[%clk 0:00:03.4]} 41... Ka5 {[%clk 0:00:20.6]} 42. Ne5 {[%clk 0:00:04]} 42...
Nd6+ {[%clk 0:00:20.2]} 43. Kd3 {[%clk 0:00:02.2]} 43... Kxa4 {[%clk 0:00:20.7]}
44. Nc6 {[%clk 0:00:02.3]} 44... a5 {[%clk 0:00:20.5]} 45. d5 {[%clk 0:00:02.9]}
45... exd5 {[%clk 0:00:20.2]} 46. Kd4 {[%clk 0:00:03.4]} 46... Kb5 {[%clk
0:00:14.6]} 47. Kxd5 {[%clk 0:00:03.8]} 47... Nf5 {[%clk 0:00:14.2]} 48. Na7+
{[%clk 0:00:03.4]} 48... Kb4 {[%clk 0:00:14.1]} 49. Nc6+ {[%clk 0:00:03.8]}
49... Kb5 {[%clk 0:00:14.6]} 50. Na7+ {[%clk 0:00:04.2]} 50... Kb6 {[%clk
0:00:14.9]} 51. Nc8+ {[%clk 0:00:04.3]} 51... Kc7 {[%clk 0:00:15.2]} 52. Na7
{[%clk 0:00:04.2]} 52... a4 {[%clk 0:00:14.8]} 53. Ke5 {[%clk 0:00:03.5]} 53...
Kb6 {[%clk 0:00:13.6]} 54. Nc8+ {[%clk 0:00:03.7]} 54... Kc5 {[%clk 0:00:13.7]}
55. Ke4 {[%clk 0:00:01.4]} 55... a3 {[%clk 0:00:13.4]} 0-1

[Event "Late-Titled-Tuesday-Blitz-September-26-2023"]
[Site "Chess.com"]
[Date "2023.09.26"]
[Round "6"]
[White "Shuvalov"]
[Black "Inepton_Fermion"]
[Result "0-1"]
[WhiteElo "2472"]
[BlackElo "2367"]
[TimeControl "180+1"]
[EndTime "15:05:12 PDT"]
[Termination "Inepton_Fermion won by resignation"]

1. d4 {[%clk 0:02:57]} 1... Nf6 {[%clk 0:02:59.9]} 2. c4 {[%clk 0:02:56.8]} 2...
e6 {[%clk 0:03:00.3]} 3. Nc3 {[%clk 0:02:56.5]} 3... Bb4 {[%clk 0:03:00.9]} 4.
e3 {[%clk 0:02:56]} 4... b6 {[%clk 0:03:00.5]} 5. Ne2 {[%clk 0:02:54.1]} 5...
Ne4 {[%clk 0:02:57.7]} 6. Qc2 {[%clk 0:02:48.4]} 6... Bb7 {[%clk 0:02:57.5]} 7.
a3 {[%clk 0:02:44.6]} 7... Bxc3+ {[%clk 0:02:57.9]} 8. Nxc3 {[%clk 0:02:45.1]}
8... Nxc3 {[%clk 0:02:58.3]} 9. Qxc3 {[%clk 0:02:45.4]} 9... d6 {[%clk
0:02:59.2]} 10. f3 {[%clk 0:02:44.2]} 10... f5 {[%clk 0:02:55.1]} 11. Bd3 {[%clk
0:02:42.2]} 11... O-O {[%clk 0:02:48.1]} 12. O-O {[%clk 0:02:41.2]} 12... Nd7
{[%clk 0:02:29.9]} 13. b4 {[%clk 0:02:33.5]} 13... Qf6 {[%clk 0:02:21.5]} 14.
Bb2 {[%clk 0:02:32.6]} 14... a5 {[%clk 0:02:21.2]} 15. b5 {[%clk 0:02:28.9]}
15... Rae8 {[%clk 0:02:00.5]} 16. Rae1 {[%clk 0:02:27.4]} 16... f4 {[%clk
0:01:49]} 17. e4 {[%clk 0:02:10.6]} 17... e5 {[%clk 0:01:48.7]} 18. Rf2 {[%clk
0:01:46.6]} 18... Bc8 {[%clk 0:01:37.3]} 19. Bf1 {[%clk 0:01:44.9]} 19... exd4
{[%clk 0:01:23.6]} 20. Qxd4 {[%clk 0:01:44.4]} 20... Qxd4 {[%clk 0:01:22.5]} 21.
Bxd4 {[%clk 0:01:45.3]} 21... Ne5 {[%clk 0:01:22.9]} 22. Rc1 {[%clk 0:01:36.7]}
22... g5 {[%clk 0:01:13.2]} 23. Rd2 {[%clk 0:01:34.7]} 23... Bb7 {[%clk
0:01:00.3]} 24. Kf2 {[%clk 0:01:24.9]} 24... Kf7 {[%clk 0:00:57.8]} 25. Be2
{[%clk 0:01:20.8]} 25... Kg6 {[%clk 0:00:57.5]} 26. Bxe5 {[%clk 0:01:10.6]}
26... Rxe5 {[%clk 0:00:57.2]} 27. g3 {[%clk 0:01:08.2]} 27... fxg3+ {[%clk
0:00:54]} 28. Kxg3 {[%clk 0:01:08.7]} 28... Rf4 {[%clk 0:00:51.3]} 29. Rc3
{[%clk 0:01:06.4]} 29... h5 {[%clk 0:00:51]} 30. Re3 {[%clk 0:01:00.9]} 30...
h4+ {[%clk 0:00:39.9]} 31. Kg2 {[%clk 0:01:00.9]} 31... g4 {[%clk 0:00:38.2]}
32. fxg4 {[%clk 0:00:50.3]} 32... Rexe4 {[%clk 0:00:27.1]} 33. Rxe4 {[%clk
0:00:47.8]} 33... Bxe4+ {[%clk 0:00:28]} 34. Kg1 {[%clk 0:00:42.5]} 34... Bb7
{[%clk 0:00:17.7]} 35. Rd1 {[%clk 0:00:33.4]} 35... Kg5 {[%clk 0:00:16.9]} 36.
Rf1 {[%clk 0:00:27.7]} 36... Bc8 {[%clk 0:00:10.7]} 37. h3 {[%clk 0:00:22]}
37... Rxf1+ {[%clk 0:00:05.7]} 38. Kxf1 {[%clk 0:00:22.9]} 38... Be6 {[%clk
0:00:05.9]} 39. Kf2 {[%clk 0:00:22.4]} 39... Kf4 {[%clk 0:00:06]} 40. Bf1 {[%clk
0:00:20.9]} 40... Bf7 {[%clk 0:00:03.9]} 41. Be2 {[%clk 0:00:20.2]} 41... Bg6
{[%clk 0:00:03.8]} 42. Bf1 {[%clk 0:00:19.2]} 42... Bf7 {[%clk 0:00:03.8]} 43.
Be2 {[%clk 0:00:19.5]} 43... d5 {[%clk 0:00:03]} 44. cxd5 {[%clk 0:00:19.2]}
44... Bxd5 {[%clk 0:00:03.9]} 45. Bf1 {[%clk 0:00:19.4]} 45... c6 {[%clk
0:00:03.4]} 46. bxc6 {[%clk 0:00:19.4]} 46... Bxc6 {[%clk 0:00:04]} 47. Be2
{[%clk 0:00:19]} 47... b5 {[%clk 0:00:04]} 48. Bd3 {[%clk 0:00:17.9]} 48... b4
{[%clk 0:00:04.1]} 49. axb4 {[%clk 0:00:17.8]} 49... axb4 {[%clk 0:00:05]} 50.
Bc4 {[%clk 0:00:18.1]} 50... Ba4 {[%clk 0:00:05.5]} 51. Ke2 {[%clk 0:00:17.3]}
51... Bc2 {[%clk 0:00:03.4]} 52. Kd2 {[%clk 0:00:17]} 52... Be4 {[%clk 0:00:02]}
53. Kc1 {[%clk 0:00:15.9]} 53... Bg2 {[%clk 0:00:02.5]} 54. g5 {[%clk
0:00:15.2]} 54... Kxg5 {[%clk 0:00:02.5]} 55. Be6 {[%clk 0:00:15.6]} 55... Kf4
{[%clk 0:00:01.6]} 56. Kb2 {[%clk 0:00:15.8]} 56... Kg3 {[%clk 0:00:02.1]} 57.
Kb3 {[%clk 0:00:15.8]} 57... Bxh3 {[%clk 0:00:03]} 58. Bd5 {[%clk 0:00:14.8]}
58... Bg2 {[%clk 0:00:02.3]} 59. Be6 {[%clk 0:00:15]} 59... Bf3 {[%clk
0:00:02.4]} 60. Kxb4 {[%clk 0:00:14.1]} 60... Bg4 {[%clk 0:00:03]} 61. Bd5
{[%clk 0:00:13.8]} 61... h3 {[%clk 0:00:03.5]} 62. Bh1 {[%clk 0:00:12.1]} 62...
h2 {[%clk 0:00:03.1]} 63. Kc3 {[%clk 0:00:11.9]} 63... Bf3 {[%clk 0:00:04]} 64.
Kd2 {[%clk 0:00:11.7]} 64... Bxh1 {[%clk 0:00:04.2]} 65. Ke1 {[%clk 0:00:12.3]}
65... Bf3 {[%clk 0:00:05.1]} 66. Kd2 {[%clk 0:00:12.4]} 66... h1=Q {[%clk
0:00:05.6]} 67. Ke3 {[%clk 0:00:13.3]} 67... Qe1+ {[%clk 0:00:05.8]} 0-1

[Event "Late-Titled-Tuesday-Blitz-September-26-2023"]
[Site "Chess.com"]
[Date "2023.09.26"]
[Round "6"]
[White "jamengrand"]
[Black "infinitegiantkiller"]
[Result "1/2-1/2"]
[WhiteElo "2266"]
[BlackElo "2443"]
[TimeControl "180+1"]
[EndTime "15:05:15 PDT"]
[Termination "Game drawn by repetition"]

1. e4 {[%clk 0:02:59.2]} 1... c5 {[%clk 0:02:50.9]} 2. Be2 {[%clk 0:02:58.7]}
2... Nc6 {[%clk 0:02:50.7]} 3. f4 {[%clk 0:02:58.1]} 3... g6 {[%clk 0:02:50.8]}
4. Nf3 {[%clk 0:02:57.1]} 4... Bg7 {[%clk 0:02:50.9]} 5. d3 {[%clk 0:02:57.1]}
5... d6 {[%clk 0:02:51.1]} 6. O-O {[%clk 0:02:57]} 6... Nf6 {[%clk 0:02:50.6]}
7. Qe1 {[%clk 0:02:53.2]} 7... O-O {[%clk 0:02:50.4]} 8. Qh4 {[%clk 0:02:50.8]}
8... Bg4 {[%clk 0:02:49.8]} 9. c3 {[%clk 0:02:46.7]} 9... Bxf3 {[%clk
0:02:46.8]} 10. Rxf3 {[%clk 0:02:43]} 10... e5 {[%clk 0:02:44.9]} 11. f5 {[%clk
0:02:42.8]} 11... Nd7 {[%clk 0:02:35.1]} 12. Bg5 {[%clk 0:02:36.2]} 12... f6
{[%clk 0:02:34.9]} 13. fxg6 {[%clk 0:02:36.6]} 13... hxg6 {[%clk 0:02:33.3]} 14.
Bh6 {[%clk 0:02:36.9]} 14... Qe7 {[%clk 0:02:27.4]} 15. Nd2 {[%clk 0:02:32.6]}
15... Bxh6 {[%clk 0:02:09.6]} 16. Qxh6 {[%clk 0:02:32.2]} 16... Qh7 {[%clk
0:02:09.9]} 17. Qe3 {[%clk 0:02:27.9]} 17... Rf7 {[%clk 0:02:03.7]} 18. Rh3
{[%clk 0:02:26.8]} 18... Qg7 {[%clk 0:02:03.8]} 19. Bg4 {[%clk 0:02:16.5]} 19...
Nf8 {[%clk 0:01:56.1]} 20. Nc4 {[%clk 0:02:14.1]} 20... Rd8 {[%clk 0:01:48.1]}
21. Qe2 {[%clk 0:02:10.8]} 21... b6 {[%clk 0:01:39.5]} 22. Rf1 {[%clk
0:02:09.8]} 22... Ne7 {[%clk 0:01:39.2]} 23. Ne3 {[%clk 0:02:07.8]} 23... d5
{[%clk 0:01:37.3]} 24. exd5 {[%clk 0:02:06.9]} 24... Nxd5 {[%clk 0:01:38.2]} 25.
Nxd5 {[%clk 0:02:04.8]} 25... Rxd5 {[%clk 0:01:39.1]} 26. Rhf3 {[%clk
0:02:01.8]} 26... Rd6 {[%clk 0:01:37.8]} 27. h4 {[%clk 0:01:50.2]} 27... f5
{[%clk 0:01:31.3]} 28. Bh3 {[%clk 0:01:50]} 28... Ne6 {[%clk 0:01:31.7]} 29. g3
{[%clk 0:01:43.9]} 29... Rfd7 {[%clk 0:01:23.2]} 30. Re3 {[%clk 0:01:42.9]}
30... c4 {[%clk 0:01:02]} 31. Rxe5 {[%clk 0:01:16.9]} 31... cxd3 {[%clk
0:01:01.8]} 32. Qe3 {[%clk 0:01:16.9]} 32... d2 {[%clk 0:00:57.5]} 33. Rd1
{[%clk 0:01:16.8]} 33... Nc5 {[%clk 0:00:49.8]} 34. Bg2 {[%clk 0:01:08.2]} 34...
Ne4 {[%clk 0:00:48.6]} 35. Re8+ {[%clk 0:01:08.1]} 35... Kf7 {[%clk 0:00:31]}
36. Bxe4 {[%clk 0:01:07.8]} 36... Kxe8 {[%clk 0:00:19.9]} 37. Bc6+ {[%clk
0:01:07.9]} 37... Kd8 {[%clk 0:00:20.1]} 38. Bxd7 {[%clk 0:01:07.6]} 38... Qxd7
{[%clk 0:00:19.9]} 39. Kf2 {[%clk 0:01:05.1]} 39... Rd3 {[%clk 0:00:16.8]} 40.
Qg5+ {[%clk 0:01:05.1]} 40... Kc7 {[%clk 0:00:16.8]} 41. Qf4+ {[%clk 0:01:02]}
41... Kb7 {[%clk 0:00:16.2]} 42. Kg1 {[%clk 0:01:01]} 42... Qd5 {[%clk
0:00:14.8]} 43. Qf2 {[%clk 0:00:58.5]} 43... Rf3 {[%clk 0:00:12.2]} 44. Qg2
{[%clk 0:00:58.5]} 44... Rd3 {[%clk 0:00:11.2]} 45. Qxd5+ {[%clk 0:00:58.1]}
45... Rxd5 {[%clk 0:00:12.1]} 46. Kf2 {[%clk 0:00:58.8]} 46... Rd3 {[%clk
0:00:12.6]} 47. a4 {[%clk 0:00:54.1]} 47... Kc6 {[%clk 0:00:12.3]} 48. b4 {[%clk
0:00:46.3]} 48... a6 {[%clk 0:00:12.2]} 49. c4 {[%clk 0:00:42.9]} 49... a5
{[%clk 0:00:10.8]} 50. bxa5 {[%clk 0:00:38.7]} 50... bxa5 {[%clk 0:00:11.7]} 51.
Ke2 {[%clk 0:00:37]} 51... Rxg3 {[%clk 0:00:11.7]} 52. Kxd2 {[%clk 0:00:37.2]}
52... Rg4 {[%clk 0:00:11.8]} 53. Kc3 {[%clk 0:00:36.3]} 53... Rxh4 {[%clk
0:00:11.6]} 54. Rd5 {[%clk 0:00:36.3]} 54... Rh3+ {[%clk 0:00:10.9]} 55. Kd4
{[%clk 0:00:36.4]} 55... Rh4+ {[%clk 0:00:09.5]} 56. Kc3 {[%clk 0:00:36.2]}
56... f4 {[%clk 0:00:07.5]} 57. Kd4 {[%clk 0:00:27.2]} 57... f3+ {[%clk
0:00:06.4]} 58. Ke3 {[%clk 0:00:27.6]} 58... Rxc4 {[%clk 0:00:06.8]} 59. Rxa5
{[%clk 0:00:27.8]} 59... Rc3+ {[%clk 0:00:07.1]} 60. Kf2 {[%clk 0:00:27.7]}
60... Kd6 {[%clk 0:00:05.2]} 61. Rg5 {[%clk 0:00:27.6]} 61... Ra3 {[%clk
0:00:04.5]} 62. Rxg6+ {[%clk 0:00:23]} 62... Ke5 {[%clk 0:00:04.6]} 63. Rg4
{[%clk 0:00:23.2]} 63... Kf5 {[%clk 0:00:04.3]} 64. Rb4 {[%clk 0:00:23.1]} 64...
Ke5 {[%clk 0:00:03.9]} 65. Rg4 {[%clk 0:00:21.8]} 65... Kf5 {[%clk 0:00:04.1]}
66. Rb4 {[%clk 0:00:20.7]} 66... Ke5 {[%clk 0:00:04.4]} 67. Rh4 {[%clk
0:00:15.8]} 67... Kf5 {[%clk 0:00:04.5]} 68. Rb4 {[%clk 0:00:15.4]} 1/2-1/2

[Event "Late-Titled-Tuesday-Blitz-September-26-2023"]
[Site "Chess.com"]
[Date "2023.09.26"]
[Round "6"]
[White "Andrei_Skvortsov"]
[Black "Lady_Nika"]
[Result "0-1"]
[WhiteElo "2662"]
[BlackElo "2525"]
[TimeControl "180+1"]
[EndTime "15:05:17 PDT"]
[Termination "Lady_Nika won by resignation"]

1. e4 {[%clk 0:02:56.7]} 1... e6 {[%clk 0:03:00.9]} 2. d4 {[%clk 0:02:57.4]}
2... d5 {[%clk 0:03:01.6]} 3. exd5 {[%clk 0:02:58.3]} 3... exd5 {[%clk
0:03:01.7]} 4. Nf3 {[%clk 0:02:59.2]} 4... Nf6 {[%clk 0:03:01]} 5. Bd3 {[%clk
0:02:59.5]} 5... Bd6 {[%clk 0:03:01.2]} 6. Qe2+ {[%clk 0:03:00.1]} 6... Qe7
{[%clk 0:03:00.4]} 7. Qxe7+ {[%clk 0:03:00.7]} 7... Bxe7 {[%clk 0:03:00.9]} 8.
Bf4 {[%clk 0:03:00.8]} 8... c6 {[%clk 0:03:00.7]} 9. O-O {[%clk 0:03:01.3]} 9...
O-O {[%clk 0:03:00.9]} 10. Re1 {[%clk 0:03:01.8]} 10... Re8 {[%clk 0:03:01.2]}
11. Nbd2 {[%clk 0:03:01.7]} 11... Bg4 {[%clk 0:02:58.8]} 12. Ne5 {[%clk
0:03:01.7]} 12... Nbd7 {[%clk 0:02:58.3]} 13. Nxg4 {[%clk 0:02:56.5]} 13... Nxg4
{[%clk 0:02:57.4]} 14. h3 {[%clk 0:02:56.7]} 14... Ngf6 {[%clk 0:02:57]} 15. Nf3
{[%clk 0:02:56.2]} 15... Bf8 {[%clk 0:02:53.4]} 16. Kf1 {[%clk 0:02:55.2]} 16...
h6 {[%clk 0:02:53.4]} 17. Rxe8 {[%clk 0:02:54.7]} 17... Rxe8 {[%clk 0:02:52.5]}
18. Re1 {[%clk 0:02:55.2]} 18... Rxe1+ {[%clk 0:02:52.4]} 19. Kxe1 {[%clk
0:02:56]} 19... g5 {[%clk 0:02:52.7]} 20. Be3 {[%clk 0:02:52.6]} 20... Ne4
{[%clk 0:02:52]} 21. Nd2 {[%clk 0:02:50.9]} 21... f5 {[%clk 0:02:48.9]} 22. f3
{[%clk 0:02:50.9]} 22... Nxd2 {[%clk 0:02:48.7]} 23. Kxd2 {[%clk 0:02:50.4]}
23... f4 {[%clk 0:02:48.5]} 24. Bf2 {[%clk 0:02:50.8]} 24... Kf7 {[%clk
0:02:45.1]} 25. Bf5 {[%clk 0:02:50.1]} 25... Ke7 {[%clk 0:02:45]} 26. Kd3 {[%clk
0:02:50.2]} 26... Bg7 {[%clk 0:02:43]} 27. c3 {[%clk 0:02:50.4]} 27... Kd6
{[%clk 0:02:42.3]} 28. Be1 {[%clk 0:02:39.7]} 28... Nb6 {[%clk 0:02:37.4]} 29.
b3 {[%clk 0:02:39]} 29... Bf6 {[%clk 0:02:27.6]} 30. c4 {[%clk 0:02:38.4]} 30...
Nd7 {[%clk 0:02:22.5]} 31. c5+ {[%clk 0:02:35.6]} 31... Kc7 {[%clk 0:02:21]} 32.
Ba5+ {[%clk 0:02:34.6]} 32... b6 {[%clk 0:02:20.5]} 33. cxb6+ {[%clk 0:02:28.2]}
33... axb6 {[%clk 0:02:14.3]} 34. Bc3 {[%clk 0:02:27.9]} 34... Nb8 {[%clk
0:02:06.7]} 35. Bb4 {[%clk 0:02:21.4]} 35... Na6 {[%clk 0:01:54.6]} 36. Bc3
{[%clk 0:02:13.9]} 36... Kd6 {[%clk 0:01:52.6]} 37. Bc8 {[%clk 0:02:10.2]} 37...
Nc7 {[%clk 0:01:48.9]} 38. Bb4+ {[%clk 0:02:10.1]} 38... c5 {[%clk 0:01:48.6]}
39. dxc5+ {[%clk 0:02:08.9]} 39... bxc5 {[%clk 0:01:49.5]} 40. Bd2 {[%clk
0:02:07.5]} 40... Nb5 {[%clk 0:01:43]} 41. Bg4 {[%clk 0:01:58.7]} 41... Na3
{[%clk 0:01:36.8]} 42. Bh5 {[%clk 0:01:51.5]} 42... c4+ {[%clk 0:01:34.9]} 43.
bxc4 {[%clk 0:01:49.9]} 43... dxc4+ {[%clk 0:01:35.8]} 44. Ke2 {[%clk
0:01:50.4]} 44... Kc5 {[%clk 0:01:26.9]} 45. Bg6 {[%clk 0:01:45]} 45... c3
{[%clk 0:01:23]} 46. Bc1 {[%clk 0:01:45.4]} 46... Nb5 {[%clk 0:01:18.2]} 47. a4
{[%clk 0:01:37.1]} 47... Nd4+ {[%clk 0:01:16.8]} 48. Kd3 {[%clk 0:01:37.6]}
48... Kb4 {[%clk 0:01:12.9]} 49. Be8 {[%clk 0:01:36.9]} 49... Nb3 {[%clk
0:01:11]} 50. Kc2 {[%clk 0:01:29.8]} 50... Na1+ {[%clk 0:01:01.8]} 51. Kd1
{[%clk 0:00:57.1]} 51... Nb3 {[%clk 0:00:50.9]} 52. h4 {[%clk 0:00:52.6]} 52...
Bd4 {[%clk 0:00:24.7]} 53. hxg5 {[%clk 0:00:44.3]} 53... hxg5 {[%clk 0:00:25.6]}
54. Bg6 {[%clk 0:00:37.6]} 54... Kxa4 {[%clk 0:00:19.9]} 55. Bc2 {[%clk
0:00:34.2]} 55... Kb4 {[%clk 0:00:19.8]} 56. Bf5 {[%clk 0:00:31.3]} 56... Be3
{[%clk 0:00:13.1]} 57. Bxe3 {[%clk 0:00:29.3]} 57... fxe3 {[%clk 0:00:14]} 58.
Bd3 {[%clk 0:00:25.8]} 58... Nd4 {[%clk 0:00:14.9]} 59. g3 {[%clk 0:00:24.3]}
59... Kb3 {[%clk 0:00:12.8]} 60. f4 {[%clk 0:00:21.2]} 60... gxf4 {[%clk
0:00:12.3]} 61. gxf4 {[%clk 0:00:20.8]} 61... Kb2 {[%clk 0:00:12.4]} 62. f5
{[%clk 0:00:19.2]} 62... e2+ {[%clk 0:00:11.5]} 63. Ke1 {[%clk 0:00:19.6]} 63...
c2 {[%clk 0:00:10.4]} 64. Bxc2 {[%clk 0:00:18.8]} 64... Kxc2 {[%clk 0:00:10.6]}
65. f6 {[%clk 0:00:19.7]} 65... Kd3 {[%clk 0:00:10.6]} 66. Kf2 {[%clk
0:00:15.7]} 66... Nc2 {[%clk 0:00:10]} 0-1